bitfinex-derivatives/quotes_ETHF0:USTF0_20250702
["timestamp","ask_amount","ask_price","bid_price","bid_amount"]
[1751450765287,8.964565,2444.5,2444.4,4.16702405]
[1751450772287,8.242465,2444.5,2444.4,4.16702405]
[1751450772985,8.242465,2444.5,2444.4,9.60463071]
[1751450773290,8.242465,2444.5,2444.4,11.04473071]
[1751450775091,8.242465,2444.5,2444.4,7.25559666]
[1751450775287,8.242465,2444.5,2444.4,1.81799]
[1751450778395,8.242465,2444.5,2444.4,4.16702405]
[1751450779294,9.060415,2444.5,2444.4,1.81799]
[1751450779493,10.414315,2444.5,2444.4,1.81799]
[1751450779690,9.596365,2444.5,2444.4,1.81799]
[1751450781399,10.414315,2444.5,2444.4,1.81799]
[1751450781899,15.414315,2444.5,2444.4,1.0]
[1751450782202,0.81809,2444.1,2444.0,0.81811]
[1751450783001,0.81812,2444.0,2443.9,41.61813]
[1751450783199,1.50512,2444.0,2443.9,41.61813]
[1751450783599,0.687,2444.0,2443.9,41.61813]
[1751450785204,8.929465,2444.0,2443.9,41.61813]
[1751450785503,9.747585,2444.0,2443.9,41.61813]
[1751450791808,8.929465,2444.0,2443.9,41.61813]
[1751450792003,8.242465,2444.0,2443.9,41.61813]
[1751450792202,8.242465,2444.0,2443.9,43.02453]
[1751450792397,8.242465,2444.0,2443.9,48.3705256]
[1751450792904,8.242465,2444.0,2443.9,50.71955965]
[1751450793108,7.242465,2444.0,2443.9,48.4932777]
[1751450802616,5.590725,2444.0,2443.9,48.4932777]
[1751450802816,1.4378,2444.9,2444.8,0.81785]
[1751450803016,2.25562,2444.9,2444.8,0.81785]
[1751450803218,1.4378,2444.9,2444.8,0.81785]
[1751450803515,2.25562,2444.9,2444.8,0.81785]
[1751450803817,1.4378,2444.9,2444.8,0.81785]
[1751450806117,9.680265,2444.9,2444.8,0.81785]
[1751450806317,10.498085,2444.9,2444.8,0.81785]
[1751450807917,9.680265,2444.9,2444.8,0.81785]
[1751450808618,10.498085,2444.9,2444.8,0.81785]
[1751450808821,9.680265,2444.9,2444.8,0.81785]
[1751450809118,10.498085,2444.9,2444.8,0.81785]
[1751450809315,9.680265,2444.9,2444.8,0.81785]
[1751450811919,10.498085,2444.9,2444.8,0.81785]
[1751450812619,9.680265,2444.9,2444.8,0.81785]
[1751450814018,10.498085,2444.9,2444.8,0.81785]
[1751450814318,9.680265,2444.9,2444.8,0.81785]
[1751450815118,8.242465,2444.9,2444.8,0.81785]
[1751450815315,8.242465,2444.9,2444.8,3.16688405]
[1751450821023,8.242465,2444.9,2444.8,43.96688405]
[1751450821521,8.242465,2444.9,2444.8,49.25484099]
[1751450823420,8.242465,2444.9,2444.8,54.25484099]
[1751450823625,8.242465,2444.9,2444.8,79.22384099]
[1751450824525,8.242465,2444.9,2444.8,74.22384099]
[1751450827528,8.242465,2444.9,2444.8,74.3465479]
[1751450830826,8.242465,2444.9,2444.8,41.74055691]
[1751450831022,8.242465,2444.9,2444.8,0.81785]
[1751450831529,10.318965,2444.9,2444.8,0.81785]
[1751450831729,11.006865,2444.9,2444.8,0.81785]
[1751450832830,11.006865,2444.9,2444.8,41.61785]
[1751450839634,11.824685,2444.9,2444.8,41.61785]
[1751450840529,13.35589905,2444.9,2444.5,0.6773]
[1751450840724,0.81795,2444.6,2444.5,0.81792]
[1751450841232,2.97775,2444.6,2444.5,41.61792]
[1751450841631,2.97772,2444.6,2444.5,41.61792]
[1751450844131,4.20465,2444.6,2443.6,8.16860704]
[1751450844436,2.34903405,2444.2,2444.1,0.81809]
[1751450844631,0.81808,2444.2,2444.1,41.61809]
[1751450845232,11.058645,2444.2,2444.1,41.61809]
[1751450846236,10.240565,2444.2,2444.1,41.61809]
[1751450847036,11.058615,2444.2,2444.1,41.61809]
[1751450848941,10.240565,2444.2,2444.1,41.61809]
[1751450849338,11.058615,2444.2,2444.1,41.61809]
[1751450851936,11.058615,2444.2,2444.1,40.8]
[1751450854243,11.058615,2444.2,2444.1,41.61809]
[1751450854543,11.058615,2444.2,2444.1,40.8]
[1751450855346,11.058615,2444.2,2444.1,41.61809]
[1751450861755,9.738115,2444.2,2444.1,41.61809]
[1751450862055,11.152215,2444.2,2444.1,41.61809]
[1751450865757,9.738115,2444.2,2444.1,41.61809]
[1751450868459,8.920065,2444.2,2444.1,41.61809]
[1751450868653,34.023515,2444.2,2444.1,41.61809]
[1751450871560,34.022515,2444.2,2444.1,41.61809]
[1751450881660,34.016515,2444.2,2444.1,41.61809]
[1751450882268,34.016515,2444.2,2444.1,42.30919]
[1751450882562,33.198465,2444.2,2444.1,42.30919]
[1751450882868,34.016515,2444.2,2444.1,42.30919]
[1751450883770,9.060515,2444.2,2444.1,42.30919]
[1751450883969,34.015515,2444.2,2444.1,42.30919]
[1751450891068,34.015515,2444.2,2444.1,41.61809]
[1751450899887,34.015515,2444.2,2444.1,42.28719]
[1751450903782,35.66452519,2444.2,2444.1,42.28719]
[1751450904384,34.015515,2444.2,2444.1,42.28719]
[1751450905784,34.002515,2444.2,2444.1,42.28719]
[1751450906288,33.184465,2444.2,2444.1,42.28719]
[1751450906485,33.184465,2444.2,2444.1,43.71539]
[1751450907881,34.002515,2444.2,2444.1,43.71539]
[1751450908289,33.184465,2444.2,2444.1,43.71539]
[1751450909583,33.184465,2444.2,2444.1,2.91539]
[1751450909889,33.181465,2444.2,2444.1,1.48719]
[1751450910089,33.181465,2444.2,2444.1,2.93369]
[1751450911291,33.999515,2444.2,2444.1,2.93369]
[1751450911492,33.181465,2444.2,2444.1,1.48719]
[1751450911889,33.181465,2444.2,2444.1,0.81809]
[1751450912991,33.999515,2444.2,2444.1,0.81809]
[1751450917498,33.181465,2444.2,2444.1,0.81809]
[1751450919400,33.999515,2444.2,2444.1,0.81809]
[1751450937412,33.981515,2444.2,2444.1,0.81809]
[1751450946423,8.242465,2444.2,2444.1,0.81809]
[1751450946623,8.242465,2444.2,2444.1,37.49781085]
[1751450946825,8.242465,2444.2,2444.1,37.6205529]
[1751450949522,7.375255,2444.2,2444.1,39.26949844]
[1751450949727,6.526695,2444.2,2444.1,39.26949844]
[1751450950122,6.526695,2444.2,2444.1,37.6205529]
[1751450950318,5.464085,2444.2,2444.1,39.26949844]
[1751450950526,2.998555,2444.2,2444.1,39.26949844]
[1751450950727,1.873195,2444.2,2444.1,39.26949844]
[1751450950925,0.768005,2444.2,2444.1,39.26949844]
[1751450951227,5e-06,2444.2,2444.1,39.26949844]
[1751450951716,5e-06,2444.2,2444.1,37.6205529]
[1751450951922,5e-06,2444.2,2444.1,39.97466931]
[1751450952827,5.902,2445.1,2445.0,0.81779]
[1751450953126,0.81778,2445.1,2445.0,0.81779]
[1751450960930,0.81779,2445.0,2444.9,1.53179]
[1751450961530,0.81778,2445.1,2445.0,0.81775]
[1751450964627,0.81779,2445.0,2444.9,0.81779]
[1751450965332,0.81798,2444.6,2444.5,0.81792]
[1751450966130,0.81798,2444.6,2444.1,12.9824]
[1751450966131,0.81791,2444.7,2444.6,0.81789]
[1751450966932,0.81785,2444.8,2444.7,0.81789]
[1751450967236,7.44803,2444.9,2444.8,0.81785]
[1751450970436,1.54603,2444.9,2444.8,0.81785]
[1751450975239,0.81789,2444.8,2444.6,1.6479165]
[1751450975439,0.81789,2444.8,2444.7,0.81786]
[1751450975440,2.16859,2444.8,2444.7,0.81786]
[1751450977344,2.16859,2444.8,2444.6,1.6479165]
[1751450977345,0.81789,2444.7,2444.6,2.4658065]
[1751450977548,2.18139,2444.7,2444.6,2.4658065]
[1751450978648,2.18139,2444.7,2444.6,0.81789]
[1751450978948,0.81795,2444.6,2444.5,0.81793]
[1751450979147,2.87115,2444.6,2444.5,0.81793]
[1751450979347,0.81795,2444.5,2444.4,2.4658765]
[1751450979548,2.24515,2444.5,2444.4,0.81796]
[1751450981049,2.24515,2444.5,2444.4,2.4658765]
[1751450981449,1.50764,2444.6,2444.5,0.81795]
[1751450981746,0.81791,2444.8,2444.7,0.81785]
[1751450984053,0.81791,2444.8,2444.5,4.39910463]
[1751450984054,0.81792,2444.7,2444.6,0.8179]
[1751450984253,0.81792,2444.6,2444.5,3.17213463]
[1751450984454,1.49192,2444.6,2444.5,3.17213463]
[1751450986855,0.674,2444.6,2444.5,3.17213463]
[1751450987657,1.49192,2444.6,2444.5,3.17213463]
[1751450988558,0.674,2444.6,2444.5,3.17213463]
[1751450988753,18.8307,2444.9,2444.6,2.04478]
[1751450988957,17.469,2444.9,2444.8,3.17206463]
[1751450989957,17.469,2444.9,2444.8,0.81785]
[1751450990456,18.28685,2444.9,2444.8,0.81785]
[1751450991057,5.902,2444.9,2444.8,3.17206463]
[1751450991356,6.71982,2444.9,2444.8,3.17206463]
[1751450991655,5.902,2444.9,2444.8,3.17206463]
[1751450991956,6.71982,2444.9,2444.8,3.17206463]
[1751450992356,5.902,2444.9,2444.8,3.17206463]
[1751450993659,6.71982,2444.9,2444.8,3.17206463]
[1751450994054,0.81781,2445.0,2444.9,0.81779]
[1751450995551,0.7048,2445.1,2445.0,0.81779]
[1751450995754,0.81769,2445.4,2445.3,0.81765]
[1751450996055,0.7048,2445.4,2445.3,41.61765]
[1751450996257,0.81762,2445.6,2445.5,0.81759]
[1751450996458,2.23507133,2445.6,2445.5,0.81759]
[1751450997155,1.41745133,2445.6,2445.5,1.51929]
[1751450998460,2.23504133,2445.6,2445.5,1.51929]
[1751451000061,0.81759,2445.6,2445.5,1.51929]
[1751451000753,0.81765,2445.4,2445.3,40.8]
[1751451001157,0.81765,2445.4,2445.3,41.61769]
[1751451001353,2.86025,2445.4,2445.3,40.8]
[1751451003461,5.21446463,2445.4,2445.3,40.8]
[1751451004965,0.81775,2445.1,2445.0,0.81776]
[1751451005364,0.81775,2445.1,2445.0,41.61776]
[1751451007364,0.81775,2445.1,2445.0,40.8]
[1751451008367,0.81775,2445.1,2445.0,41.61779]
[1751451009365,0.81773,2445.2,2445.1,0.81772]
[1751451009564,0.81773,2445.2,2445.1,1.53472]
[1751451010569,0.81773,2445.2,2445.1,0.81772]
[1751451019581,0.81773,2445.2,2445.1,3.17193463]
[1751451020378,6.71972,2445.3,2445.2,0.81772]
[1751451020778,6.71972,2445.3,2445.2,1.50532]
[1751451021276,6.71972,2445.3,2445.2,2.21782]
[1751451021477,6.71972,2445.3,2445.2,0.81772]
[1751451021678,8.06692,2445.3,2445.2,0.81772]
[1751451021980,0.81775,2445.2,2445.1,0.81773]
[1751451027078,0.81775,2445.2,2445.1,3.17194463]
[1751451027278,0.81775,2445.2,2445.1,3.89044463]
[1751451032688,0.81775,2445.2,2445.1,0.81773]
[1751451032888,0.81775,2445.2,2445.1,3.17194463]
[1751451039894,0.81772,2445.2,2445.1,3.17194463]
[1751451042397,6.71971,2445.3,2445.2,0.81772]
[1751451042596,6.71971,2445.3,2445.2,2.18082]
[1751451045500,6.71971,2445.3,2445.2,1.47862]
[1751451048198,6.71969,2445.3,2445.2,1.47862]
[1751451048703,0.81769,2445.3,2445.2,1.47862]
[1751451049300,0.6824,2445.4,2445.0,40.8]
[1751451049503,0.81775,2445.1,2445.0,41.61777]
[1751451050002,1.49145,2445.1,2445.0,41.61777]
[1751451054603,1.49145,2445.1,2445.0,43.97198463]
[1751451056108,1.49145,2445.1,2445.0,40.8]
[1751451057910,0.81779,2445.0,2444.9,0.81782]
[1751451058409,0.81779,2445.0,2444.9,41.61782]
[1751451058912,0.81779,2445.0,2444.9,43.97203463]
[1751451059501,0.81779,2445.0,2444.9,40.8]
[1751451059707,2.15159,2445.0,2444.9,40.8]
[1751451060314,0.81789,2444.7,2444.6,1.5334]
[1751451060812,0.81789,2444.7,2444.6,42.3334]
[1751451063511,0.81789,2444.7,2444.6,67.1804]
[1751451063815,0.81789,2444.7,2444.6,42.3334]
[1751451064017,0.81789,2444.7,2444.6,67.1804]
[1751451067218,0.81789,2444.7,2444.6,42.3334]
[1751451067717,0.81789,2444.7,2444.6,67.1794]
[1751451076923,1.53838,2444.8,2444.7,0.81789]
[1751451077124,1.53838,2444.8,2444.7,3.17210463]
[1751451077617,1.53838,2444.8,2444.7,43.97210463]
[1751451089735,1.53838,2444.8,2444.7,43.26567524]
[1751451090538,0.7205,2444.8,2444.7,43.26567524]
[1751451091532,1.53835,2444.8,2444.7,43.26567524]
[1751451095939,0.6958,2445.3,2444.7,43.26567524]
[1751451096134,0.6827,2445.1,2445.0,0.81777]
[1751451096336,0.8177,2445.3,2445.2,0.81772]
[1751451096529,1.5004,2445.3,2445.2,0.81772]
[1751451097440,1.5004,2445.3,2445.2,2.46550524]
[1751451097838,1.5004,2445.3,2445.2,3.17072905]
[1751451101242,0.6827,2445.3,2445.2,3.17072905]
[1751451102140,1.50039,2445.3,2445.2,3.17072905]
[1751451103941,0.6827,2445.3,2445.2,3.17072905]
[1751451104142,1.50039,2445.3,2445.2,3.17072905]
[1751451104446,0.6827,2445.3,2445.2,3.17072905]
[1751451106445,1.50039,2445.3,2445.2,3.17072905]
[1751451110050,0.6827,2445.3,2445.2,3.17072905]
[1751451112350,0.6827,2445.3,2445.2,43.97072905]
[1751451114253,5.902,2445.4,2445.3,0.81769]
[1751451114448,0.81761,2445.6,2445.5,0.81762]
[1751451114449,1.55361,2445.6,2445.5,0.81762]
[1751451114644,1.55361,2445.6,2445.5,3.17062905]
[1751451116651,0.736,2445.6,2445.5,3.17062905]
[1751451116852,1.55359,2445.6,2445.5,3.17062905]
[1751451119757,1.55359,2445.6,2445.5,2.46435967]
[1751451124060,1.55359,2445.6,2445.5,1.64673967]
[1751451124361,1.55359,2445.6,2445.5,2.46435967]
[1751451126761,0.81759,2445.6,2445.5,2.46435967]
[1751451126961,6.71958,2445.7,2445.6,0.81759]
[1751451128257,5.902,2445.7,2445.6,0.81759]
[1751451128459,6.71955,2445.7,2445.6,0.81759]
[1751451128855,0.81751,2445.9,2445.8,0.81749]
[1751451129065,6.71947,2446.0,2445.9,0.81749]
[1751451129461,7.40874,2446.1,2446.0,0.81745]
[1751451129958,7.40874,2446.1,2446.0,3.16886477]
[1751451131667,0.8174,2446.2,2446.1,0.81742]
[1751451132069,0.8174,2446.2,2446.1,1.49402]
[1751451132765,0.81733,2446.4,2446.3,0.81732]
[1751451132965,0.81733,2446.4,2446.3,3.16873477]
[1751451133166,13.08291,2446.5,2446.4,0.81732]
[1751451133560,1.54591,2446.5,2446.4,0.81732]
[1751451133965,1.54591,2446.5,2446.4,1.48142]
[1751451134166,0.7286,2446.5,2446.4,42.28142]
[1751451134367,1.54589,2446.5,2446.4,42.28142]
[1751451135769,0.7286,2446.5,2446.4,42.28142]
[1751451135970,0.81727,2446.6,2446.5,0.81729]
[1751451136270,0.81727,2446.6,2446.5,3.16870477]
[1751451144670,0.81723,2446.8,2446.7,0.81719]
[1751451144869,1.51553,2446.8,2446.7,3.16860477]
[1751451145574,1.51553,2446.8,2446.7,3.88500477]
[1751451147975,1.51553,2446.8,2446.7,1.53359]
[1751451148275,1.51553,2446.8,2446.7,3.88500477]
[1751451149472,6.71917,2447.0,2446.9,0.81715]
[1751451149676,7.03923493,2447.0,2446.9,43.96856477]
[1751451150273,6.71917,2447.0,2446.9,3.16856477]
[1751451150774,5.902,2447.0,2446.9,43.96856477]
[1751451151071,0.81711,2447.1,2447.0,0.81712]
[1751451151467,0.81711,2447.1,2447.0,1.53982]
[1751451158781,0.81712,2447.0,2446.9,40.8]
[1751451159380,2.18032,2447.0,2446.9,40.8]
[1751451159883,0.81719,2446.8,2446.7,0.81719]
[1751451160284,0.81719,2446.8,2446.7,41.61719]
[1751451164788,0.81719,2446.8,2446.7,43.96860477]
[1751451171194,0.81719,2446.8,2446.7,3.16860477]
[1751451176598,0.81719,2446.8,2446.7,3.83780477]
[1751451176797,7.43229,2446.9,2446.8,0.81719]
[1751451177496,6.71915,2446.9,2446.8,0.81719]
[1751451179593,2.04239,2447.5,2446.8,24.77]
[1751451179792,0.81702,2447.3,2447.2,2.35141477]
[1751451180393,0.81709,2447.1,2447.0,43.81251477]
[1751451180997,0.81709,2447.1,2447.0,44.62963477]
[1751451183599,0.81709,2447.1,2447.0,43.81251477]
[1751451184298,0.81709,2447.1,2447.0,44.62963477]
[1751451185402,0.81709,2447.1,2447.0,42.27822]
[1751451185604,0.81722,2446.7,2446.6,1.53133]
[1751451185800,0.81722,2446.7,2446.6,26.29733]
[1751451186001,0.81722,2446.7,2446.6,3.88274477]
[1751451187297,0.81722,2446.7,2446.6,28.64874477]
[1751451189301,0.81722,2446.7,2446.6,3.88274477]
[1751451198415,0.81722,2446.7,2446.6,1.53133]
[1751451198611,0.81722,2446.7,2446.6,3.88274477]
[1751451201219,0.81722,2446.7,2446.6,1.53133]
[1751451201518,0.81722,2446.7,2446.6,42.33133]
[1751451202318,0.81722,2446.8,2446.7,0.81719]
[1751451202519,0.81722,2446.8,2446.7,3.16860477]
[1751451204719,0.81722,2446.8,2446.7,3.88680477]
[1751451204921,0.81722,2446.8,2446.7,3.16860477]
[1751451213219,2.75822,2447.0,2446.6,42.2323]
[1751451213422,2.1464,2447.0,2446.6,2.35141477]
[1751451213624,0.8172,2446.9,2446.8,3.16857477]
[1751451215230,0.8172,2446.9,2446.8,3.83307477]
[1751451215429,0.81711,2447.1,2447.0,0.81708]
[1751451215631,0.81711,2447.1,2447.0,3.16849477]
[1751451218629,1.54145,2447.2,2447.1,0.81709]
[1751451219034,1.54145,2447.2,2447.1,1.54089]
[1751451229342,1.54145,2447.2,2447.1,42.34089]
[1751451231845,1.54145,2447.2,2447.1,43.98558903]
[1751451236549,1.54145,2447.2,2447.1,43.26178903]
[1751451237650,2.76704,2447.2,2446.8,1.48165]
[1751451237950,0.81715,2446.9,2446.8,0.6645]
[1751451238146,0.81715,2446.9,2446.8,41.4645]
[1751451238345,0.81715,2446.9,2446.8,42.28169]
[1751451241350,0.81715,2446.9,2446.8,41.61719]
[1751451243954,0.81715,2446.9,2446.8,40.8]
[1751451244652,0.81722,2446.7,2446.6,0.81723]
[1751451244854,0.81725,2446.6,2446.5,1.48436]
[1751451245055,1.51275,2446.6,2446.5,1.48436]
[1751451245255,1.51275,2446.6,2446.5,42.28436]
[1751451249057,1.51275,2446.6,2446.5,41.4671]
[1751451249258,1.51275,2446.6,2446.5,40.8]
[1751451249855,0.81732,2446.4,2446.3,0.00613397]
[1751451250255,0.81732,2446.4,2446.3,40.80613397]
[1751451250657,0.81732,2446.4,2446.3,0.00613397]
[1751451250962,2.14662,2446.4,2446.3,0.00613397]
[1751451255563,0.81732,2446.4,2446.3,0.82348397]
[1751451255757,0.81732,2446.4,2446.3,3.57228397]
[1751451257767,0.81732,2446.4,2446.3,2.22458397]
[1751451261665,6.71931,2446.5,2446.4,0.81732]
[1751451261962,6.71931,2446.5,2446.4,3.16760446]
[1751451263368,6.71931,2446.5,2446.4,0.81732]
[1751451263762,0.81732,2446.4,2446.3,1.52148397]
[1751451264568,0.81732,2446.4,2446.3,3.87176843]
[1751451264867,6.71932,2446.5,2446.4,0.81732]
[1751451265065,6.71932,2446.5,2446.4,1.54232]
[1751451266971,5.902,2446.5,2446.4,1.54232]
[1751451267170,5.902,2446.5,2446.4,2.90662]
[1751451272068,6.71924,2446.7,2446.6,0.81725]
[1751451273469,0.81729,2446.5,2446.4,0.8173]
[1751451273669,0.81729,2446.5,2446.4,0.81732]
[1751451273867,0.81729,2446.6,2446.5,0.81725]
[1751451274062,0.81729,2446.6,2446.5,3.16753446]
[1751451275773,5.902,2446.7,2446.5,3.16753446]
[1751451275774,6.71925,2446.7,2446.6,0.81725]
[1751451276675,0.81729,2446.6,2446.5,0.81726]
[1751451278476,0.81729,2446.6,2446.5,0.81729]
[1751451280573,2.25519,2446.6,2446.5,0.81729]
[1751451280871,1.4379,2446.6,2446.3,3.05441843]
[1751451281076,1.48642,2446.5,2446.4,0.81729]
[1751451288381,0.81732,2446.5,2446.4,0.81729]
[1751451289178,7.41164,2446.7,2446.6,0.81725]
[1751451289384,0.00613397,2446.8,2446.7,0.81722]
[1751451289679,0.00613397,2446.8,2446.7,1.51532]
[1751451289877,0.00613397,2446.8,2446.7,2.88102]
[1751451300085,0.00613397,2446.8,2446.7,13.13887467]
[1751451301490,0.00613397,2446.8,2446.7,8.13887467]
[1751451303596,0.00613397,2446.8,2446.7,28.58460446]
[1751451307497,0.00613397,2446.8,2446.7,28.58260446]
[1751451323315,0.00613397,2446.8,2446.7,33.96504177]
[1751451337727,0.00613397,2446.8,2446.7,33.25962029]
[1751451341432,0.00613397,2446.8,2446.7,41.61722]
[1751451342032,0.66753397,2446.8,2446.7,41.61722]
[1751451342433,1.48472397,2446.8,2446.7,41.61722]
[1751451355944,0.66753397,2446.8,2446.7,41.61722]
[1751451356543,1.48472397,2446.8,2446.7,41.61722]
[1751451356844,0.66753397,2446.8,2446.7,41.61722]
[1751451358444,1.48472397,2446.8,2446.7,41.61722]
[1751451358644,0.66753397,2446.8,2446.7,41.61722]
[1751451359547,0.66753397,2446.8,2446.7,43.96755974]
[1751451360246,0.66753397,2446.8,2446.7,41.61722]
[1751451360445,0.66753397,2446.8,2446.7,43.96755974]
[1751451361340,0.66753397,2446.8,2446.7,0.81722]
[1751451361941,2.01983397,2446.8,2446.7,0.81722]
[1751451363039,2.01983397,2446.8,2446.5,41.4762]
[1751451363247,1.3523,2446.7,2446.6,0.81723]
[1751451363844,6.3523,2446.7,2446.5,43.26283282]
[1751451364044,2.84394,2446.7,2446.5,43.26283282]
[1751451364242,2.19995,2446.6,2446.5,43.26283282]
[1751451364839,1.3827,2446.6,2446.5,43.26283282]
[1751451367745,6.56953397,2446.8,2446.5,42.44557282]
[1751451367949,5.90813397,2446.8,2446.7,2.46279282]
[1751451368550,5.90813397,2446.8,2446.7,4.56629282]
[1751451369551,0.00613397,2446.8,2446.7,4.56629282]
[1751451369751,0.00613397,2446.8,2446.7,5.27051512]
[1751451372360,0.00613397,2446.8,2446.7,2.92072]
[1751451372659,0.00613397,2446.8,2446.7,1.51002]
[1751451374759,0.00613397,2446.8,2446.7,0.81722]
[1751451377963,0.00613397,2446.8,2446.7,2.22022]
[1751451388071,0.00613397,2446.8,2446.7,26.91122]
[1751451397084,0.00613397,2446.8,2446.7,37.33012913]
[1751451397281,6.6058,2447.3,2447.2,0.81705]
[1751451397481,0.7038,2447.3,2447.2,3.16684512]
[1751451404891,5.902,2447.7,2447.6,0.81692]
[1751451405084,5.902,2447.7,2447.6,3.16671512]
[1751451405285,5.902,2447.7,2447.6,43.96671512]
[1751451406991,5.902,2447.7,2447.6,68.64871512]
[1751451407992,0.6993,2447.8,2447.7,0.81689]
[1751451409790,2.1328,2447.8,2447.7,0.81689]
[1751451417797,0.81689,2447.7,2447.6,66.29289]
[1751451417992,2.87559,2447.7,2447.6,41.61689]
[1751451422099,2.0587,2447.7,2447.6,41.61689]
[1751451422999,1.51618,2447.8,2447.7,0.81689]
[1751451423200,1.51618,2447.8,2447.7,3.16668512]
[1751451426400,0.6993,2447.8,2447.7,3.16668512]
[1751451426601,5.902,2447.9,2447.8,0.81685]
[1751451427495,5.902,2447.9,2447.8,3.16664512]
[1751451428097,0.00613397,2448.0,2447.9,0.81682]
[1751451428298,0.00613397,2448.0,2447.9,1.49332]
[1751451430100,0.00613397,2448.0,2447.9,2.89432]
[1751451430303,0.00613397,2448.0,2447.9,32.83692725]
[1751451431306,0.00613397,2448.0,2447.9,32.95947877]
[1751451432402,1.3367,2448.9,2448.7,0.81654]
[1751451432604,0.7191,2448.8,2448.7,3.16633512]
[1751451438712,0.7191,2448.8,2448.7,43.96633512]
[1751451439307,1.53562,2448.8,2448.7,43.96633512]
[1751451439506,0.7191,2448.8,2448.7,43.96633512]
[1751451441109,0.81647,2449.0,2448.9,0.81648]
[1751451441306,1.53477,2449.0,2448.9,0.81648]
[1751451442708,2.99597,2449.0,2448.9,0.81648]
[1751451444413,1.53477,2449.0,2448.9,3.16627512]
[1751451447312,1.53477,2449.0,2448.9,0.81648]
[1751451449913,2.97797,2449.0,2448.9,0.81648]
[1751451463226,0.81652,2448.9,2448.8,0.81648]
[1751451473726,0.81652,2448.9,2448.8,2.45877523]
[1751451479834,0.7183,2449.0,2448.8,2.45877523]
[1751451480040,0.81648,2448.9,2448.8,2.45877523]
[1751451481941,7.94281,2449.4,2448.8,3.68352523]
[1751451482240,7.94281,2449.4,2449.0,0.81642]
[1751451482241,0.81644,2449.1,2449.0,0.81642]
[1751451482443,0.81644,2449.1,2449.0,2.45874523]
[1751451489646,0.81644,2449.1,2449.0,0.81645]
[1751451489841,0.81644,2449.1,2449.0,2.45874523]
[1751451490239,0.81645,2449.0,2448.9,1.6484292]
[1751451490435,1.48265,2449.0,2448.9,2.4649092]
[1751451496048,1.48265,2449.0,2448.9,0.00613397]
[1751451499254,1.48265,2449.0,2448.9,0.82261397]
[1751451499653,1.48265,2449.0,2448.9,0.00613397]
[1751451499853,1.48265,2449.0,2448.9,0.82261397]
[1751451501154,1.48265,2449.0,2448.9,0.00613397]
[1751451502156,1.48265,2449.0,2448.9,0.82261397]
[1751451504959,1.48265,2449.0,2448.9,0.00613397]
[1751451505959,2.04126,2448.9,2448.6,2.30849523]
[1751451506162,0.81658,2448.6,2448.5,2.45890523]
[1751451507761,0.81658,2448.6,2448.5,0.81661]
[1751451509555,0.6783,2448.7,2448.4,40.8]
[1751451509556,0.81662,2448.5,2448.4,40.8]
[1751451509762,0.81665,2448.4,2448.3,1.49191397]
[1751451509961,1.48365,2448.4,2448.3,1.49191397]
[1751451510862,0.667,2448.4,2448.3,1.49191397]
[1751451511059,1.48365,2448.4,2448.3,1.49191397]
[1751451511563,0.667,2448.4,2448.3,1.49191397]
[1751451512863,1.48365,2448.4,2448.3,1.49191397]
[1751451515567,0.667,2448.4,2448.3,1.49191397]
[1751451515767,1.48365,2448.4,2448.3,1.49191397]
[1751451517472,0.667,2448.4,2448.3,1.49191397]
[1751451517669,0.81664,2448.5,2448.4,0.81665]
[1751451517971,5.902,2448.6,2448.5,0.81662]
[1751451519072,6.71858,2448.6,2448.5,0.81662]
[1751451519475,5.902,2448.6,2448.5,0.81662]
[1751451519873,6.71858,2448.6,2448.5,0.81662]
[1751451520072,5.902,2448.6,2448.5,0.81662]
[1751451520372,6.71858,2448.6,2448.5,0.81662]
[1751451520567,0.81658,2448.6,2448.5,0.81662]
[1751451521670,0.81658,2448.7,2448.6,0.81653]
[1751451523475,0.81658,2448.7,2448.6,3.16340435]
[1751451529777,0.81658,2448.7,2448.6,2.45920231]
[1751451531181,0.81658,2448.7,2448.6,0.81653]
[1751451531381,7.38903,2448.9,2448.8,0.81652]
[1751451531582,7.38903,2448.9,2448.8,2.45919231]
[1751451533477,5.38903,2448.9,2448.8,1.64267231]
[1751451533780,5.38903,2448.9,2448.8,0.81652]
[1751451539383,5.38903,2448.9,2448.8,3.16287525]
[1751451546190,5.38903,2448.9,2448.8,0.81652]
[1751451551589,0.81652,2448.8,2448.7,0.6644]
[1751451551790,0.81652,2448.8,2448.7,0.81655]
[1751451551991,0.81655,2448.7,2448.6,2.34635525]
[1751451552196,1.49975,2448.7,2448.6,43.14635525]
[1751451552694,1.49975,2448.7,2448.6,2.34635525]
[1751451553392,1.49975,2448.7,2448.6,3.16291525]
[1751451555797,1.49975,2448.7,2448.6,2.459324]
[1751451556592,1.49975,2448.7,2448.6,1.642764]
[1751451556791,0.81659,2448.6,2448.5,3.189064]
[1751451557193,0.81662,2448.5,2448.4,41.61663]
[1751451557998,0.81662,2448.5,2448.4,0.81663]
[1751451558198,0.81665,2448.4,2448.3,0.00613397]
[1751451558395,9.181614,2448.4,2448.3,0.00613397]
[1751451559493,7.53885,2448.4,2448.3,0.00613397]
[1751451560100,7.53885,2448.4,2448.3,0.82282397]
[1751451560393,6.08545,2448.4,2448.3,0.82282397]
[1751451560595,6.08545,2448.4,2448.3,1.55022397]
[1751451566200,5.2688,2448.4,2448.3,1.55022397]
[1751451566501,4.5725,2448.4,2448.3,1.55022397]
[1751451566800,4.5725,2448.4,2448.3,2.87342397]
[1751451567801,0.81665,2448.5,2448.4,0.81665]
[1751451567998,0.81665,2448.5,2448.4,3.87990214]
[1751451569602,0.81662,2448.6,2448.5,0.81659]
[1751451569804,30.75848,2448.7,2448.6,0.81659]
[1751451570004,30.03208,2448.7,2448.6,3.16394214]